[Event "98th Caplin Hastings Masters 2024-25"]
[Site "Hastings"]
[Date "2025.01.02"]
[Round "8.46"]
[White "Stokes, Stephen"]
[Black "Fryer, David W"]
[Result "1/2-1/2"]
[ECO "A02"]
[WhiteElo "1866"]
[BlackElo "1928"]
[Annotator "NA RC"]
[PlyCount "124"]
[EventDate "2024.12.23"]
[EventType "swiss"]
[EventCountry "ENG"]
[SourceTitle "playchess.com"]
[Source "ChessBase"]
[SourceQuality "1"]
[TimeControl "5400+30"]

1. f4 {[%emt 0:00:05]} Nf6 {[%emt 0:03:18]} 2. Nf3 {[%emt 0:00:12]} g6 {[%emt 0:03:59]} 3. b3 {[%emt 0:01:01]} Bg7 {[%emt 0:00:21]} 4. Bb2 {[%emt 0:00:39]} O-O {[%emt 0:00:49]} 5. c4 {[%emt 0:02:34]} c5 {[%emt 0:04:27]} 6. g3 {[%emt 0:01:23]} d6 {[%emt 0:02:39]} 7. Bg2 {[%emt 0:00:20]} Nc6 {[%emt 0:01:39]} 8. O-O {[%emt 0:01:07]} Rb8 {[%emt 0:02:48]} 9. Nc3 {[%emt 0:09:21]} e6 {[%emt 0:02:57]} 10. d3 {[%emt 0:08:31]} d5 {[%emt 0:08:23]} 11. h3 {[%emt 0:06:21]} a6 {[%emt 0:21:34]} 12. Qd2 {[%emt 0:07:10]} Qc7 {[%emt 0:11:17]} 13. e3 {[%emt 0:03:13]} Rd8 {[%emt 0:01:05]} 14. Qe2 {[%emt 0:00:41]} d4 {[%emt 0:08:54]} 15. exd4 {[%emt 0:02:23]} cxd4 {[%emt 0:00:20]} 16. Ne4 {[%emt 0:01:35]} b6 {[%emt 0:02:56]} 17. Rac1 {[%emt 0:05:29]} Bb7 {[%emt 0:02:13]} 18. Ned2 {[%emt 0:02:11]} Nd7 {[%emt 0:01:57]} 19. Rce1 {[%emt 0:04:35]} Nc5 {[%emt 0:00:34]} 20. Ne4 {[%emt 0:00:50]} Nb4 {[%emt 0:01:05]} 21. Nxc5 {[%emt 0:01:00]} bxc5 {[%emt 0:00:22]} 22. a3 {[%emt 0:03:46]} Nc6 {[%emt 0:00:16]} 23. Nd2 {[%emt 0:00:52]} a5 {[%emt 0:01:03]} 24. a4 {[%emt 0:03:51]} Ne7 {[%emt 0:02:13]} 25. Bxb7 {[%emt 0:02:06]} Rxb7 {[%emt 0:00:33]} 26. g4 {[%emt 0:00:57]} Nc6 {[%emt 0:01:03]} 27. Ba3 {[%emt 0:03:15]} Bf8 {[%emt 0:00:24]} 28. Qe4 {[%emt 0:01:51]} Rbb8 {[%emt 0:03:24]} 29. Re2 {[%emt 0:02:15]} Ne7 {[%emt 0:03:30]} 30. Rg2 {[%emt 0:03:43]} Nc8 {[%emt 0:00:46]} 31. f5 {[%emt 0:07:28]} exf5 {[%emt 0:01:27]} 32. gxf5 {[%emt 0:00:18]} Qe7 {[%emt 0:01:58]} 33. fxg6 {[%emt 0:05:15]} fxg6 {[%emt 0:00:50]} 34. Bxc5 {[%emt 0:02:30]} Qxe4 {[%emt 0:03:31]} 35. Nxe4 {[%emt 0:00:31]} Bxc5 {[%emt 0:00:34]} 36. Nxc5 {[%emt 0:00:07]} Ne7 {[%emt 0:00:58]} 37. Rg5 {[%emt 0:04:58]} Kh8 {[%emt 0:01:08]} 38. Re5 {[%emt 0:02:02]} Nf5 {[%emt 0:00:16]} 39. Rb1 {[%emt 0:00:58]} Rd6 {[%emt 0:01:08]} 40. Ne4 {[%emt 0:00:19]} Rdb6 {[%emt 0:00:23]} 41. Rb5 {[%emt 0:00:08]} Ng7 {[%emt 0:00:52]} 42. Nc5 {[%emt 0:00:53]} Rxb5 {[%emt 0:00:47]} 43. axb5 {[%emt 0:00:12]} Nh5 {[%emt 0:00:23]} 44. Ra1 {[%emt 0:01:02]} Nf4 {[%emt 0:00:08]} 45. Kh2 {[%emt 0:00:11]} Re8 {[%emt 0:00:08]} 46. Kg3 {[%emt 0:00:48]} g5 {[%emt 0:00:10]} 47. h4 {[%emt 0:01:10]} Ne2+ {[%emt 0:00:43]} 48. Kg4 {[%emt 0:00:47]} gxh4 {[%emt 0:00:37]} 49. b6 {[%emt 0:00:50]} h5+ {[%emt 0:00:24]} 50. Kxh4 {[%emt 0:00:36]} Rg8 {[%emt 0:00:25]} 51. b7 {[%emt 0:00:28]} Nf4 {[%emt 0:00:12]} 52. b8=Q {[%emt 0:00:39]} Rxb8 {[%emt 0:00:12]} 53. Kg5 {[%emt 0:00:16]} Rc8 {[%emt 0:01:07]} 54. Rxa5 {[%emt 0:00:16]} Rxc5+ {[%emt 0:00:10]} 55. Rxc5 {[%emt 0:00:19]} Ne6+ {[%emt 0:00:06]} 56. Kxh5 {[%emt 0:00:08]} Nxc5 {[%emt 0:00:07]} 57. b4 {[%emt 0:00:54]} Nxd3 {[%emt 0:00:10]} 58. b5 {[%emt 0:00:05]} Nc5 {[%emt 0:00:29]} 59. Kg4 {[%emt 0:00:21]} Kg7 {[%emt 0:00:31]} 60. Kf4 {[%emt 0:00:18]} Kf6 {[%emt 0:01:04]} 61. b6 {[%emt 0:00:10]} Ke6 {[%emt 0:01:13]} 62. b7 {[%emt 0:00:29]} Nxb7 {[%emt 0:00:23]} 1/2-1/2

[Event "98th Caplin Hastings Masters 2024-25"]
[Site "Hastings"]
[Date "2025.01.02"]
[Round "8.47"]
[White "Jacobs, Simon"]
[Black "Vaidyanathan, Sathya"]
[Result "0-1"]
[ECO "C47"]
[WhiteElo "1873"]
[BlackElo "1908"]
[Annotator "NA RC"]
[PlyCount "36"]
[EventDate "2024.12.23"]
[EventType "swiss"]
[EventCountry "ENG"]
[SourceTitle "playchess.com"]
[Source "ChessBase"]
[SourceQuality "1"]
[TimeControl "5400+30"]

1. e4 {[%emt 0:00:04]} e5 {[%emt 0:00:03]} 2. Nf3 {[%emt 0:00:07]} Nc6 {[%emt 0:00:04]} 3. Nc3 {[%emt 0:00:04]} Nf6 {[%emt 0:00:03]} 4. d4 {[%emt 0:00:04]} exd4 {[%emt 0:00:05]} 5. Nxd4 {[%emt 0:00:05]} Nxe4 {[%emt 0:00:11]} 6. Nxe4 {[%emt 0:08:22]} Qe7 {[%emt 0:00:09]} 7. f3 {[%emt 0:02:25]} d5 {[%emt 0:00:38]} 8. Nxc6 {[%emt 0:02:04]} bxc6 {[%emt 0:00:16]} 9. Qe2 {[%emt 0:01:27]} dxe4 {[%emt 0:01:53]} 10. Qxe4 {[%emt 0:00:18]} Qxe4+ {[%emt 0:14:38]} 11. fxe4 {[%emt 0:00:21]} Bc5 {[%emt 0:00:18]} 12. Bd2 {[%emt 0:09:29]} O-O {[%emt 0:01:18]} 13. O-O-O {[%emt 0:00:46]} Bg4 {[%emt 0:01:35]} 14. Re1 {[%emt 0:01:36]} Bf2 {[%emt 0:00:21]} 15. Bc4 {[%emt 0:00:43]} Bxe1 {[%emt 0:00:24]} 16. Rxe1 {[%emt 0:00:04]} Be6 {[%emt 0:04:00]} 17. Bd3 {[%emt 0:01:20]} Rfd8 {[%emt 0:06:06]} 18. Be3 {[%emt 0:01:44]} Bxa2 {[%emt 0:01:40]} 0-1

[Event "98th Caplin Hastings Masters 2024-25"]
[Site "Hastings"]
[Date "2025.01.02"]
[Round "8.48"]
[White "Norinkeviciute, Rasa"]
[Black "Rubeck, Jonathan"]
[Result "1-0"]
[ECO "A26"]
[WhiteElo "1952"]
[BlackElo "1824"]
[Annotator "NA RC"]
[PlyCount "99"]
[EventDate "2024.12.23"]
[EventType "swiss"]
[EventCountry "ENG"]
[SourceTitle "playchess.com"]
[Source "ChessBase"]
[SourceQuality "1"]
[TimeControl "5400+30"]

1. c4 {[%emt 0:00:14]} Nf6 {[%emt 0:00:13]} 2. g3 {[%emt 0:00:09]} g6 {[%emt 0:00:04]} 3. Bg2 {[%emt 0:00:06]} Bg7 {[%emt 0:00:10]} 4. Nc3 {[%emt 0:00:17]} e5 {[%emt 0:01:14]} 5. d3 {[%emt 0:00:42]} d6 {[%emt 0:00:56]} 6. e4 {[%emt 0:00:58]} Nc6 {[%emt 0:00:19]} 7. Nge2 {[%emt 0:00:13]} Be6 {[%emt 0:01:21]} 8. h3 {[%emt 0:02:45]} Qd7 {[%emt 0:03:20]} 9. Be3 {[%emt 0:00:20]} a6 {[%emt 0:03:49]} 10. a3 {[%emt 0:04:30]} h5 {[%emt 0:03:22]} 11. Nd5 {[%emt 0:04:18]} b5 {[%emt 0:03:47]} 12. b4 {[%emt 0:00:57]} O-O {[%emt 0:02:51]} 13. Rc1 {[%emt 0:09:00]} bxc4 {[%emt 0:02:54]} 14. dxc4 {[%emt 0:02:50]} Nh7 {[%emt 0:04:15]} 15. c5 {[%emt 0:05:34]} Rab8 {[%emt 0:03:55]} 16. Qd3 {[%emt 0:03:53]} Ra8 {[%emt 0:03:18]} 17. cxd6 {[%emt 0:04:52]} cxd6 {[%emt 0:05:30]} 18. Nb6 {[%emt 0:02:47]} Qb7 {[%emt 0:01:52]} 19. Nxa8 {[%emt 0:02:06]} Qxa8 {[%emt 0:00:49]} 20. O-O {[%emt 0:04:34]} Rd8 {[%emt 0:01:56]} 21. Rfd1 {[%emt 0:01:11]} Bf6 {[%emt 0:02:17]} 22. Qc3 {[%emt 0:01:03]} Ne7 {[%emt 0:01:07]} 23. Qc7 {[%emt 0:02:20]} Rd7 {[%emt 0:01:34]} 24. Qc2 {[%emt 0:08:51]} Ng5 {[%emt 0:04:39]} 25. Kh2 {[%emt 0:01:43]} Kg7 {[%emt 0:01:31]} 26. Nc3 {[%emt 0:03:43]} Rd8 {[%emt 0:02:57]} 27. Qd2 {[%emt 0:02:00]} Nh7 {[%emt 0:44:00]} 28. Nd5 {[%emt 0:10:43]} Bxd5 {[%emt 0:00:00]} 29. exd5 {[%emt 0:00:07]} Nf5 {[%emt 0:00:00]} 30. Bb6 {[%emt 0:00:55]} Rb8 {[%emt 0:00:00]} 31. Bc7 {[%emt 0:01:31]} Rb7 {[%emt 0:00:00]} 32. Rc6 {[%emt 0:04:28]} Nd4 {[%emt 0:00:00]} 33. Bxd6 {[%emt 0:17:20]} Ng5 {[%emt 0:00:00]} 34. Rc3 {[%emt 0:00:00]} Nb5 {[%emt 0:00:00]} 35. h4 {[%emt 0:00:00]} e4 {[%emt 0:00:00]} 36. Rc6 {[%emt 0:00:00]} Nf3+ {[%emt 0:00:00]} 37. Bxf3 {[%emt 0:00:00]} exf3 {[%emt 0:00:00]} 38. Bc5 {[%emt 0:00:00]} Rd7 {[%emt 0:00:00]} 39. Rxf6 {[%emt 0:00:00]} Kxf6 {[%emt 0:00:00]} 40. Qb2+ {[%emt 0:00:00]} Kf5 {[%emt 0:00:00]} 41. Rd3 {[%emt 0:01:48]} Rxd5 {[%emt 0:00:00]} 42. Rxf3+ {[%emt 0:00:08]} Ke6 {[%emt 0:00:00]} 43. Qf6+ {[%emt 0:00:20]} Kd7 {[%emt 0:00:00]} 44. Qxf7+ {[%emt 0:00:48]} Kc6 {[%emt 0:00:00]} 45. Rf6+ {[%emt 0:00:34]} Nd6 {[%emt 0:00:00]} 46. Qxg6 {[%emt 0:00:26]} Kb5 {[%emt 0:00:00]} 47. Rxd6 {[%emt 0:00:52]} Re5 {[%emt 0:00:00]} 48. Rb6+ {[%emt 0:00:24]} Kc4 {[%emt 0:00:00]} 49. Qc2+ {[%emt 0:00:10]} Kd5 {[%emt 0:00:00]} 50. Qd3# {[%emt 0:00:13]} 1-0

[Event "98th Caplin Hastings Masters 2024-25"]
[Site "Hastings"]
[Date "2025.01.02"]
[Round "8.49"]
[White "Flynn, David"]
[Black "Choi, Hyunbin"]
[Result "1-0"]
[ECO "C41"]
[WhiteElo "1834"]
[BlackElo "1673"]
[Annotator "NA RC"]
[PlyCount "39"]
[EventDate "2024.12.23"]
[EventType "swiss"]
[EventCountry "ENG"]
[SourceTitle "playchess.com"]
[Source "ChessBase"]
[SourceQuality "1"]
[TimeControl "5400+30"]

1. e4 {[%emt 0:04:28]} e5 {[%emt 0:00:09]} 2. Nf3 {[%emt 0:00:07]} d6 {[%emt 0:00:11]} 3. d4 {[%emt 0:00:12]} exd4 {[%emt 0:00:05]} 4. Nxd4 {[%emt 0:00:04]} Nf6 {[%emt 0:00:06]} 5. Nc3 {[%emt 0:00:03]} Be7 {[%emt 0:00:12]} 6. g3 {[%emt 0:00:10]} O-O {[%emt 0:00:55]} 7. Bg2 {[%emt 0:00:02]} Re8 {[%emt 0:01:02]} 8. O-O {[%emt 0:00:25]} Bf8 {[%emt 0:04:31]} 9. h3 {[%emt 0:01:21]} Nbd7 {[%emt 0:01:59]} 10. b3 {[%emt 0:14:05]} Nc5 {[%emt 0:01:06]} 11. Re1 {[%emt 0:00:10]} g6 {[%emt 0:06:44]} 12. Bb2 {[%emt 0:05:08]} Bg7 {[%emt 0:00:17]} 13. Qd2 {[%emt 0:06:45]} Rb8 {[%emt 0:13:24]} 14. Rad1 {[%emt 0:13:49]} Ne6 {[%emt 0:03:57]} 15. Nf3 {[%emt 0:08:23]} Nc5 {[%emt 0:16:39]} 16. e5 {[%emt 0:06:07]} Nfd7 {[%emt 0:00:54]} 17. exd6 {[%emt 0:06:15]} Ne5 {[%emt 0:00:38]} 18. Nxe5 {[%emt 0:04:05]} Bxe5 {[%emt 0:00:31]} 19. dxc7 {[%emt 0:01:20]} Qxc7 {[%emt 0:00:10]} 20. Nb5 {[%emt 0:05:51]} 1-0

[Event "98th Caplin Hastings Masters 2024-25"]
[Site "Hastings"]
[Date "2025.01.02"]
[Round "8.50"]
[White "Chapman, Luke"]
[Black "Miller, Daniel"]
[Result "1-0"]
[ECO "B23"]
[WhiteElo "1706"]
[BlackElo "2093"]
[Annotator "NA RC"]
[PlyCount "53"]
[EventDate "2024.12.23"]
[EventType "swiss"]
[EventCountry "ENG"]
[SourceTitle "playchess.com"]
[Source "ChessBase"]
[SourceQuality "1"]
[TimeControl "5400+30"]

1. e4 {[%emt 0:00:02]} c5 {[%emt 0:00:03]} 2. Nc3 {[%emt 0:00:03]} d6 {[%emt 0:00:03]} 3. f4 {[%emt 0:00:04]} g6 {[%emt 0:00:07]} 4. Nf3 {[%emt 0:00:05]} Bg7 {[%emt 0:00:07]} 5. Bb5+ {[%emt 0:00:02]} Bd7 {[%emt 0:00:05]} 6. a4 {[%emt 0:00:05]} Nc6 {[%emt 0:00:05]} 7. d3 {[%emt 0:00:07]} a6 {[%emt 0:01:49]} 8. Bxc6 {[%emt 0:00:05]} Bxc6 {[%emt 0:00:07]} 9. a5 {[%emt 0:00:27]} b5 {[%emt 0:03:56]} 10. axb6 {[%emt 0:00:21]} Qxb6 {[%emt 0:00:08]} 11. O-O {[%emt 0:00:24]} Nf6 {[%emt 0:09:39]} 12. Qe1 {[%emt 0:03:10]} O-O {[%emt 0:11:31]} 13. Qh4 {[%emt 0:04:33]} c4+ {[%emt 0:13:30]} 14. Kh1 {[%emt 0:00:56]} cxd3 {[%emt 0:14:46]} 15. cxd3 {[%emt 0:00:37]} e6 {[%emt 0:03:59]} 16. Nd2 {[%emt 0:03:31]} Qd8 {[%emt 0:02:07]} 17. Nc4 {[%emt 0:02:18]} Nh5 {[%emt 0:02:29]} 18. Qf2 {[%emt 0:03:54]} d5 {[%emt 0:08:10]} 19. Na5 {[%emt 0:01:15]} Bxc3 {[%emt 0:08:26]} 20. bxc3 {[%emt 0:06:32]} Bd7 {[%emt 0:00:10]} 21. Ba3 {[%emt 0:02:33]} Re8 {[%emt 0:01:33]} 22. Nb7 {[%emt 0:00:43]} Qc7 {[%emt 0:02:14]} 23. Nd6 {[%emt 0:00:45]} Red8 {[%emt 0:00:52]} 24. f5 {[%emt 0:04:45]} exf5 {[%emt 0:05:54]} 25. exf5 {[%emt 0:00:11]} Nf6 {[%emt 0:04:59]} 26. fxg6 {[%emt 0:01:30]} Ng4 {[%emt 0:01:02]} 27. Qxf7+ {[%emt 0:00:07]} 1-0

[Event "98th Caplin Hastings Masters 2024-25"]
[Site "Hastings"]
[Date "2025.01.02"]
[Round "8.51"]
[White "Prudent, Sylvio"]
[Black "Kim, Nayoon B"]
[Result "0-1"]
[ECO "A06"]
[WhiteElo "1780"]
[BlackElo "1663"]
[Annotator "NA RC"]
[PlyCount "158"]
[EventDate "2024.12.23"]
[EventType "swiss"]
[EventCountry "ENG"]
[SourceTitle "playchess.com"]
[Source "ChessBase"]
[SourceQuality "1"]
[TimeControl "5400+30"]

1. Nf3 {[%emt 0:00:04]} d5 {[%emt 0:00:11]} 2. b3 {[%emt 0:00:12]} Nc6 {[%emt 0:00:49]} 3. Bb2 {[%emt 0:00:07]} Nf6 {[%emt 0:01:30]} 4. e3 {[%emt 0:00:08]} a6 {[%emt 0:00:46]} 5. d4 {[%emt 0:00:06]} Bf5 {[%emt 0:01:17]} 6. a3 {[%emt 0:05:39]} e6 {[%emt 0:03:13]} 7. Bd3 {[%emt 0:00:11]} Bg6 {[%emt 0:08:34]} 8. O-O {[%emt 0:00:49]} Be7 {[%emt 0:03:50]} 9. Ne5 {[%emt 0:09:43]} Nxe5 {[%emt 0:03:00]} 10. dxe5 {[%emt 0:00:09]} Nd7 {[%emt 0:00:19]} 11. c4 {[%emt 0:01:04]} dxc4 {[%emt 0:06:46]} 12. Bxc4 {[%emt 0:01:01]} Nb6 {[%emt 0:03:39]} 13. Be2 {[%emt 0:00:18]} O-O {[%emt 0:02:45]} 14. Nc3 {[%emt 0:00:19]} c5 {[%emt 0:05:05]} 15. Bf3 {[%emt 0:02:28]} Qc7 {[%emt 0:02:08]} 16. Ne4 {[%emt 0:00:47]} Nd5 {[%emt 0:10:27]} 17. Rc1 {[%emt 0:02:39]} Qb6 {[%emt 0:04:54]} 18. Nd6 {[%emt 0:11:58]} Nc7 {[%emt 0:16:09]} 19. b4 {[%emt 0:22:19]} Rfd8 {[%emt 0:10:41]} 20. Qe2 {[%emt 0:07:17]} Bxd6 {[%emt 0:10:13]} 21. exd6 {[%emt 0:00:39]} Qxd6 {[%emt 0:00:35]} 22. Rfd1 {[%emt 0:03:03]} Qe7 {[%emt 0:01:12]} 23. Rxc5 {[%emt 0:00:07]} Nb5 {[%emt 0:02:29]} 24. Rdc1 {[%emt 0:04:50]} Qd7 {[%emt 0:01:20]} 25. h3 {[%emt 0:05:47]} h6 {[%emt 0:00:29]} 26. a4 {[%emt 0:04:07]} Nd6 {[%emt 0:00:15]} 27. Qd1 {[%emt 0:00:12]} Qe8 {[%emt 0:00:35]} 28. Qb3 {[%emt 0:02:27]} Rac8 {[%emt 0:00:35]} 29. Rc7 {[%emt 0:01:38]} Rxc7 {[%emt 0:00:16]} 30. Rxc7 {[%emt 0:00:05]} Rc8 {[%emt 0:00:03]} 31. Qc3 {[%emt 0:00:26]} f6 {[%emt 0:01:12]} 32. Rxc8 {[%emt 0:05:33]} Nxc8 {[%emt 0:00:04]} 33. Bxb7 {[%emt 0:00:07]} Nb6 {[%emt 0:00:03]} 34. Qc6 {[%emt 0:02:21]} Nxa4 {[%emt 0:01:06]} 35. Bd4 {[%emt 0:00:42]} Qxc6 {[%emt 0:00:50]} 36. Bxc6 {[%emt 0:00:12]} Bc2 {[%emt 0:00:03]} 37. f4 {[%emt 0:00:45]} Kf7 {[%emt 0:00:46]} 38. Kf2 {[%emt 0:00:05]} Ke7 {[%emt 0:00:04]} 39. Ke2 {[%emt 0:01:06]} Bb3 {[%emt 0:00:59]} 40. Kd3 {[%emt 0:00:53]} Kd6 {[%emt 0:00:34]} 41. Bb7 {[%emt 0:00:49]} Bd5 {[%emt 0:00:35]} 42. Bxa6 {[%emt 0:00:43]} Bxg2 {[%emt 0:00:22]} 43. Ke2 {[%emt 0:02:18]} Kc7 {[%emt 0:00:36]} 44. h4 {[%emt 0:01:10]} Bc6 {[%emt 0:00:30]} 45. Kf2 {[%emt 0:01:48]} Nb6 {[%emt 0:00:33]} 46. Kg3 {[%emt 0:00:22]} Nd5 {[%emt 0:00:24]} 47. b5 {[%emt 0:04:27]} Bb7 {[%emt 0:00:29]} 48. Kg4 {[%emt 0:00:00]} g6 {[%emt 0:00:33]} 49. e4 {[%emt 0:00:00]} f5+ {[%emt 0:00:32]} 50. Kf3 {[%emt 0:00:00]} Ne7 {[%emt 0:00:31]} 51. Bxb7 {[%emt 0:01:21]} Kxb7 {[%emt 0:00:02]} 52. h5 {[%emt 0:00:14]} gxh5 {[%emt 0:00:54]} 53. Bc5 {[%emt 0:00:43]} Ng6 {[%emt 0:00:21]} 54. Bd4 {[%emt 0:00:38]} h4 {[%emt 0:00:31]} 55. Bf6 {[%emt 0:00:19]} Kb6 {[%emt 0:00:24]} 56. exf5 {[%emt 0:00:26]} exf5 {[%emt 0:00:03]} 57. Kg2 {[%emt 0:00:47]} Nxf4+ {[%emt 0:00:26]} 58. Kh2 {[%emt 0:00:26]} Kxb5 {[%emt 0:01:06]} 59. Bxh4 {[%emt 0:00:07]} Kc4 {[%emt 0:00:13]} 60. Kg3 {[%emt 0:00:28]} Ng6 {[%emt 0:00:09]} 61. Bf6 {[%emt 0:00:25]} Kd3 {[%emt 0:00:35]} 62. Kf3 {[%emt 0:00:58]} Kd2 {[%emt 0:01:15]} 63. Kf2 {[%emt 0:00:20]} h5 {[%emt 0:00:24]} 64. Bg5+ {[%emt 0:00:24]} Kd3 {[%emt 0:00:05]} 65. Kf3 {[%emt 0:00:15]} h4 {[%emt 0:00:26]} 66. Bd8 {[%emt 0:00:42]} Kd4 {[%emt 0:00:45]} 67. Bf6+ {[%emt 0:00:47]} Kd5 {[%emt 0:00:08]} 68. Bd8 {[%emt 0:00:32]} Ke6 {[%emt 0:00:47]} 69. Bg5 {[%emt 0:00:22]} Ke5 {[%emt 0:00:30]} 70. Bd8 {[%emt 0:00:23]} f4 {[%emt 0:00:35]} 71. Bc7+ {[%emt 0:00:43]} Kf5 {[%emt 0:00:16]} 72. Kg2 {[%emt 0:00:32]} Kg4 {[%emt 0:00:12]} 73. Bd6 {[%emt 0:00:32]} h3+ {[%emt 0:01:10]} 74. Kh2 {[%emt 0:00:27]} f3 {[%emt 0:00:15]} 75. Bg3 {[%emt 0:00:25]} Nf4 {[%emt 0:00:43]} 76. Bf2 {[%emt 0:00:34]} Nd3 {[%emt 0:00:25]} 77. Be3 {[%emt 0:00:26]} f2 {[%emt 0:00:37]} 78. Bxf2 {[%emt 0:00:40]} Nxf2 {[%emt 0:00:04]} 79. Kg1 {[%emt 0:00:07]} Kg3 {[%emt 0:00:05]} 0-1

[Event "98th Caplin Hastings Masters 2024-25"]
[Site "Hastings"]
[Date "2025.01.02"]
[Round "8.52"]
[White "Graham, Oliver"]
[Black "Bryant, Marc A"]
[Result "1-0"]
[ECO "C55"]
[WhiteElo "1789"]
[BlackElo "1825"]
[Annotator "NA RC"]
[PlyCount "109"]
[EventDate "2024.12.23"]
[EventType "swiss"]
[EventCountry "ENG"]
[SourceTitle "playchess.com"]
[Source "ChessBase"]
[SourceQuality "1"]
[TimeControl "5400+30"]

1. e4 {[%emt 0:00:01]} e5 {[%emt 0:00:06]} 2. Nf3 {[%emt 0:00:06]} Nc6 {[%emt 0:00:01]} 3. Bc4 {[%emt 0:00:09]} Nf6 {[%emt 0:00:05]} 4. d3 {[%emt 0:00:07]} h6 {[%emt 0:00:04]} 5. Nc3 {[%emt 0:00:12]} d6 {[%emt 0:00:34]} 6. h3 {[%emt 0:00:09]} g5 {[%emt 0:00:18]} 7. a3 {[%emt 0:00:21]} g4 {[%emt 0:00:32]} 8. hxg4 {[%emt 0:00:42]} Bxg4 {[%emt 0:00:04]} 9. Be3 {[%emt 0:00:19]} h5 {[%emt 0:01:19]} 10. Qd2 {[%emt 0:00:42]} Bxf3 {[%emt 0:00:14]} 11. gxf3 {[%emt 0:00:11]} Nd4 {[%emt 0:04:29]} 12. Bxd4 {[%emt 0:00:28]} exd4 {[%emt 0:00:07]} 13. Ne2 {[%emt 0:00:08]} c5 {[%emt 0:02:51]} 14. Bb5+ {[%emt 0:06:27]} Nd7 {[%emt 0:00:33]} 15. Qf4 {[%emt 0:00:59]} a6 {[%emt 0:00:46]} 16. Bc4 {[%emt 0:00:54]} Qf6 {[%emt 0:01:56]} 17. Qxf6 {[%emt 0:01:41]} Nxf6 {[%emt 0:00:13]} 18. Ng3 {[%emt 0:01:00]} Bh6 {[%emt 0:01:35]} 19. Nf5 {[%emt 0:01:05]} Bf4 {[%emt 0:01:05]} 20. Ke2 {[%emt 0:00:40]} b5 {[%emt 0:00:50]} 21. Ba2 {[%emt 0:00:39]} Rh7 {[%emt 0:02:49]} 22. Rag1 {[%emt 0:01:31]} Kd7 {[%emt 0:02:13]} 23. Rh4 {[%emt 0:00:35]} Bh6 {[%emt 0:01:32]} 24. Nxh6 {[%emt 0:01:07]} Rxh6 {[%emt 0:01:04]} 25. Bxf7 {[%emt 0:00:16]} Rf8 {[%emt 0:03:02]} 26. Rg7 {[%emt 0:01:31]} Ne8 {[%emt 0:03:14]} 27. Bxe8+ {[%emt 0:00:50]} Kxe8 {[%emt 0:00:07]} 28. f4 {[%emt 0:00:23]} Rf7 {[%emt 0:00:40]} 29. Rg8+ {[%emt 0:00:55]} Rf8 {[%emt 0:00:26]} 30. Rxf8+ {[%emt 0:00:15]} Kxf8 {[%emt 0:00:08]} 31. f5 {[%emt 0:00:06]} Ke7 {[%emt 0:00:10]} 32. Kf3 {[%emt 0:00:04]} Kf6 {[%emt 0:00:09]} 33. Rh1 {[%emt 0:01:55]} d5 {[%emt 0:01:29]} 34. Kf4 {[%emt 0:00:30]} dxe4 {[%emt 0:01:05]} 35. dxe4 {[%emt 0:01:59]} Rh8 {[%emt 0:04:43]} 36. e5+ {[%emt 0:00:28]} Ke7 {[%emt 0:00:51]} 37. Rh4 {[%emt 0:00:18]} c4 {[%emt 0:01:53]} 38. Ke4 {[%emt 0:00:50]} d3 {[%emt 0:03:03]} 39. cxd3 {[%emt 0:00:26]} cxd3 {[%emt 0:00:02]} 40. Kxd3 {[%emt 0:00:14]} Rd8+ {[%emt 0:00:04]} 41. Ke3 {[%emt 0:00:40]} Rd5 {[%emt 0:00:24]} 42. f4 {[%emt 0:00:12]} Rd1 {[%emt 0:00:26]} 43. Rxh5 {[%emt 0:00:23]} Re1+ {[%emt 0:00:09]} 44. Kf2 {[%emt 0:00:38]} Rb1 {[%emt 0:00:14]} 45. Rh7+ {[%emt 0:00:46]} Ke8 {[%emt 0:00:25]} 46. f6 {[%emt 0:00:29]} Rxb2+ {[%emt 0:00:18]} 47. Kf3 {[%emt 0:00:07]} Rb3+ {[%emt 0:00:25]} 48. Ke4 {[%emt 0:00:10]} Rxa3 {[%emt 0:00:14]} 49. e6 {[%emt 0:00:11]} Ra4+ {[%emt 0:00:41]} 50. Ke5 {[%emt 0:00:19]} Kd8 {[%emt 0:00:07]} 51. Rh8+ {[%emt 0:00:29]} Kc7 {[%emt 0:00:16]} 52. f7 {[%emt 0:00:08]} Kb7 {[%emt 0:00:35]} 53. e7 {[%emt 0:00:28]} Ka7 {[%emt 0:00:05]} 54. e8=Q {[%emt 0:00:13]} Ra5 {[%emt 0:00:11]} 55. Qb8# {[%emt 0:00:10]} 1-0

[Event "98th Caplin Hastings Masters 2024-25"]
[Site "Hastings"]
[Date "2025.01.02"]
[Round "8.53"]
[White "Han, Yongsu"]
[Black "Butt, Laurence"]
[Result "1-0"]
[ECO "B00"]
[WhiteElo "1718"]
[BlackElo "1818"]
[Annotator "NA RC"]
[PlyCount "91"]
[EventDate "2024.12.23"]
[EventType "swiss"]
[EventCountry "ENG"]
[SourceTitle "playchess.com"]
[Source "ChessBase"]
[SourceQuality "1"]
[TimeControl "5400+30"]

1. e4 {[%emt 0:00:03]} Nc6 {[%emt 0:04:08]} 2. Nf3 {[%emt 0:00:27]} d6 {[%emt 0:00:30]} 3. d4 {[%emt 0:00:28]} Bg4 {[%emt 0:00:30]} 4. Bb5 {[%emt 0:00:45]} a6 {[%emt 0:00:27]} 5. Bxc6+ {[%emt 0:00:42]} bxc6 {[%emt 0:00:03]} 6. O-O {[%emt 0:00:18]} g6 {[%emt 0:00:24]} 7. h3 {[%emt 0:01:36]} Bd7 {[%emt 0:00:24]} 8. Re1 {[%emt 0:03:13]} Bg7 {[%emt 0:00:32]} 9. e5 {[%emt 0:00:49]} h6 {[%emt 0:02:19]} 10. Bf4 {[%emt 0:02:52]} Kf8 {[%emt 0:00:41]} 11. c4 {[%emt 0:04:01]} g5 {[%emt 0:00:20]} 12. Bh2 {[%emt 0:06:53]} g4 {[%emt 0:04:00]} 13. hxg4 {[%emt 0:00:55]} Bxg4 {[%emt 0:00:12]} 14. Nbd2 {[%emt 0:02:03]} e6 {[%emt 0:02:12]} 15. Qa4 {[%emt 0:02:30]} Ne7 {[%emt 0:00:56]} 16. Rac1 {[%emt 0:06:07]} h5 {[%emt 0:00:16]} 17. exd6 {[%emt 0:04:10]} cxd6 {[%emt 0:00:21]} 18. c5 {[%emt 0:00:15]} d5 {[%emt 0:03:03]} 19. Bd6 {[%emt 0:01:03]} Qd7 {[%emt 0:01:18]} 20. Ne5 {[%emt 0:02:51]} Bxe5 {[%emt 0:00:46]} 21. Rxe5 {[%emt 0:02:38]} f6 {[%emt 0:00:30]} 22. Re3 {[%emt 0:00:08]} Kf7 {[%emt 0:00:09]} 23. Bxe7 {[%emt 0:02:22]} Kxe7 {[%emt 0:02:45]} 24. Nf3 {[%emt 0:03:47]} h4 {[%emt 0:00:28]} 25. Rcc3 {[%emt 0:00:30]} h3 {[%emt 0:03:42]} 26. g3 {[%emt 0:02:31]} Bxf3 {[%emt 0:00:53]} 27. Rxf3 {[%emt 0:00:06]} h2+ {[%emt 0:00:10]} 28. Kh1 {[%emt 0:00:03]} e5 {[%emt 0:05:05]} 29. dxe5 {[%emt 0:05:23]} fxe5 {[%emt 0:00:07]} 30. Qa5 {[%emt 0:03:36]} d4 {[%emt 0:00:38]} 31. Rb3 {[%emt 0:01:20]} Ke6 {[%emt 0:09:45]} 32. Qd2 {[%emt 0:12:10]} Kd5 {[%emt 0:12:43]} 33. Rf6 {[%emt 0:03:00]} Raf8 {[%emt 0:09:09]} 34. Rd6+ {[%emt 0:01:41]} Qxd6 {[%emt 0:00:01]} 35. cxd6 {[%emt 0:00:09]} Kxd6 {[%emt 0:00:06]} 36. Rb7 {[%emt 0:02:52]} Rd8 {[%emt 0:06:23]} 37. Rg7 {[%emt 0:03:40]} Kd5 {[%emt 0:03:19]} 38. Rg6 {[%emt 0:01:41]} c5 {[%emt 0:02:44]} 39. Rh6 {[%emt 0:00:51]} Rhf8 {[%emt 0:01:18]} 40. Kxh2 {[%emt 0:00:40]} Rf3 {[%emt 0:00:14]} 41. Rxa6 {[%emt 0:01:07]} Rdf8 {[%emt 0:00:14]} 42. Kg2 {[%emt 0:00:18]} e4 {[%emt 0:01:47]} 43. Ra3 {[%emt 0:00:43]} d3 {[%emt 0:01:36]} 44. Ra5 {[%emt 0:03:30]} Kd6 {[%emt 0:03:12]} 45. a3 {[%emt 0:01:55]} R8f5 {[%emt 0:01:08]} 46. b4 {[%emt 0:00:31]} 1-0